bitfinex-derivatives/quotes_BTCF0:USTF0_20251023
["timestamp","ask_amount","ask_price","bid_price","bid_amount"]
[1761258097723,0.22539704,109870.0,109860.0,0.18867116]
[1761258098318,0.25814621,109870.0,109860.0,0.18867116]
[1761258098518,0.25814621,109870.0,109860.0,0.18967116]
[1761258103827,0.25814621,109870.0,109860.0,0.28066886]
[1761258106435,0.34914401,109870.0,109860.0,0.28066886]
[1761258108627,0.20479285,109870.0,109860.0,0.43820002]
[1761258109036,0.20479285,109870.0,109860.0,0.29384886]
[1761258109436,0.34914401,109870.0,109860.0,0.29384886]
[1761258109830,0.34914401,109870.0,109860.0,0.20285116]
[1761258110031,0.15919368,109870.0,109860.0,0.75836002]
[1761258110235,0.15919368,109870.0,109860.0,0.78275157]
[1761258114739,0.15919368,109870.0,109860.0,0.63841896]
[1761258115942,0.15919368,109870.0,109860.0,0.99921896]
[1761258116140,0.02453588,109870.0,109860.0,1.14358867]
[1761258116333,0.10633008,109880.0,109870.0,0.0909895]
[1761258116535,0.05728505,109880.0,109870.0,0.29416921]
[1761258116732,0.05728505,109880.0,109870.0,0.31856076]
[1761258116733,0.02453588,109880.0,109870.0,0.31856076]
[1761258116937,0.47633505,109890.0,109870.0,0.35116214]
[1761258117141,0.47633505,109890.0,109880.0,0.52322971]
[1761258118134,0.46348505,109890.0,109880.0,0.52322971]
[1761258118340,0.43073588,109890.0,109880.0,0.52322971]
[1761258118652,0.52170918,109890.0,109880.0,0.52322971]
[1761258119253,0.52270918,109890.0,109880.0,0.52322971]
[1761258121053,0.52270918,109890.0,109880.0,0.37886]
[1761258121255,0.53600918,109890.0,109880.0,0.37886]
[1761258126855,0.53600918,109890.0,109880.0,0.36518]
[1761258127451,0.17520918,109890.0,109880.0,0.36518]
[1761258127658,0.53600918,109890.0,109880.0,0.36518]
[1761258134664,0.53600918,109890.0,109880.0,0.52322971]
[1761258135061,0.53600918,109890.0,109880.0,0.37886]
[1761258138166,0.53600918,109890.0,109880.0,0.36518]
[1761258139366,0.17520918,109890.0,109880.0,0.36518]
[1761258139667,0.53600918,109890.0,109880.0,0.36518]
[1761258143264,0.56875835,109890.0,109880.0,0.36518]
[1761258144555,0.54422247,109890.0,109880.0,0.36518]
[1761258144759,0.56877065,109890.0,109880.0,0.36518]
[1761258146155,0.54422247,109890.0,109880.0,0.36518]
[1761258148362,0.54422247,109890.0,109880.0,0.32012]
[1761258148363,0.73763721,109890.0,109880.0,0.32012]
[1761258148661,0.73763721,109890.0,109860.0,0.06809226]
[1761258148662,0.01368,109870.0,109860.0,0.06809226]
[1761258148869,0.08241294,109870.0,109860.0,0.47908996]
[1761258149269,0.08241294,109870.0,109860.0,0.38809226]
[1761258149569,0.44321294,109870.0,109860.0,0.38809226]
[1761258150677,0.44321294,109870.0,109860.0,0.38909226]
[1761258151068,0.44321294,109870.0,109860.0,0.06909226]
[1761258151268,0.44321294,109870.0,109860.0,0.36471]
[1761258151668,0.44321294,109870.0,109860.0,0.36371]
[1761258153474,0.45226793,109870.0,109860.0,0.36371]
[1761258158676,0.45226793,109870.0,109850.0,0.74889226]
[1761258158677,0.03636,109860.0,109850.0,0.74889226]
[1761258158881,0.05784,109860.0,109850.0,0.74889226]
[1761258159984,0.05784,109860.0,109850.0,0.74989226]
[1761258161184,0.05784,109860.0,109850.0,0.72551]
[1761258164386,0.05784,109860.0,109850.0,0.36471]
[1761258166578,0.05784,109860.0,109850.0,0.04471]
[1761258167679,0.41864,109860.0,109850.0,0.04471]
[1761258172982,0.41864,109860.0,109850.0,0.04371]
[1761258172983,0.42164,109860.0,109850.0,0.04371]
[1761258174287,0.06084,109860.0,109850.0,0.04371]
[1761258174501,0.42164,109860.0,109850.0,0.04371]
[1761258174693,0.56605542,109860.0,109850.0,0.18812542]
[1761258176487,0.20525542,109860.0,109850.0,0.18812542]
[1761258177094,0.22982836,109860.0,109850.0,0.18812542]
[1761258178294,0.22982836,109860.0,109850.0,0.21250768]
[1761258178794,0.20525542,109860.0,109850.0,0.21250768]
[1761258179188,0.22982836,109860.0,109850.0,0.21250768]
[1761258180697,0.04716,109860.0,109850.0,0.31673368]
[1761258181489,0.1381578,109860.0,109850.0,0.31673368]
[1761258181689,0.1381578,109860.0,109850.0,0.65315142]
[1761258181889,0.1381578,109860.0,109850.0,0.67756915]
[1761258183094,0.1381578,109860.0,109850.0,0.71017053]
[1761258183294,0.1381578,109860.0,109850.0,0.67756915]
[1761258183599,0.17579299,109860.0,109850.0,0.21254315]
[1761258185199,0.17579299,109860.0,109850.0,0.30354915]
[1761258185697,0.17579299,109860.0,109850.0,0.15913373]
[1761258185993,0.32020841,109860.0,109850.0,0.06812773]
[1761258186304,0.32020841,109860.0,109850.0,0.04572773]
[1761258186598,0.32020841,109860.0,109850.0,0.21196315]
[1761258186599,0.68100841,109860.0,109850.0,0.21196315]
[1761258186998,0.68100841,109860.0,109850.0,0.06754773]
[1761258187198,0.68100841,109860.0,109850.0,0.21196315]
[1761258188395,0.68100841,109860.0,109850.0,0.06754773]
[1761258188601,0.68100841,109860.0,109850.0,0.21196315]
[1761258188800,0.71377233,109860.0,109850.0,0.21196315]
[1761258191797,0.47835911,109860.0,109850.0,0.21196315]
[1761258192001,0.00168666,109860.0,109850.0,1.22958822]
[1761258192202,0.00168666,109860.0,109850.0,1.39034331]
[1761258192702,0.00168666,109860.0,109850.0,1.19698684]
[1761258192897,0.00168666,109860.0,109850.0,1.26252359]
[1761258193101,0.00168666,109860.0,109850.0,1.24578443]
[1761258193293,0.00168666,109860.0,109850.0,1.19698684]
[1761258193891,0.00168666,109860.0,109850.0,1.26252359]
[1761258194099,0.11554049,109880.0,109870.0,0.1473394]
[1761258194100,0.16019049,109880.0,109870.0,0.1473394]
[1761258194297,0.1356353,109880.0,109870.0,0.63610444]
[1761258194697,0.1356353,109880.0,109870.0,0.99690444]
[1761258195305,0.1366353,109880.0,109870.0,0.99690444]
[1761258195707,0.1356353,109880.0,109870.0,1.00615186]
[1761258195904,0.1366353,109880.0,109870.0,0.86173644]
[1761258196100,0.1366353,109880.0,109870.0,1.00615186]
[1761258196902,0.1366353,109880.0,109870.0,0.99690444]
[1761258197109,0.1366353,109880.0,109870.0,0.98178672]
[1761258198309,0.1356353,109880.0,109870.0,0.98178672]
[1761258198503,0.1366353,109880.0,109870.0,0.97251482]
[1761258198811,0.1366353,109880.0,109870.0,0.98167862]
[1761258199005,0.1366353,109880.0,109870.0,0.97251482]
[1761258199607,0.1366353,109880.0,109870.0,0.61171482]
[1761258200907,0.1366353,109880.0,109870.0,0.97251482]
[1761258201110,0.28105072,109880.0,109870.0,0.97251482]
[1761258201911,0.28105072,109880.0,109870.0,0.61171482]
[1761258202211,0.1366353,109880.0,109870.0,0.97251482]
[1761258204106,0.29475072,109880.0,109870.0,0.95929482]
[1761258204908,0.79996614,109880.0,109870.0,0.04313]
[1761258205116,0.79996614,109880.0,109870.0,0.36305]
[1761258205510,0.82452133,109880.0,109870.0,0.36305]
[1761258206313,0.68010591,109880.0,109870.0,0.59845482]
[1761258206511,0.65555072,109880.0,109870.0,0.59845482]
[1761258206710,0.65555072,109880.0,109870.0,0.61231482]
[1761258206912,0.5111353,109880.0,109870.0,0.61231482]
[1761258207107,0.65555072,109880.0,109870.0,0.61231482]
[1761258208814,0.65555072,109880.0,109870.0,0.59845482]
[1761258212027,0.65555072,109880.0,109870.0,0.50746542]
[1761258212517,0.65555072,109880.0,109870.0,0.36305]
[1761258212711,0.65555072,109880.0,109870.0,0.36301]
[1761258213017,0.65555072,109880.0,109870.0,0.4539994]
[1761258213218,0.65555072,109880.0,109870.0,0.59841482]
[1761258216117,0.68010591,109880.0,109870.0,0.59841482]
[1761258219414,0.31930591,109880.0,109870.0,0.59841482]
[1761258219615,0.68010591,109880.0,109870.0,0.59841482]
[1761258220321,0.82452133,109880.0,109870.0,0.36301]
[1761258220717,0.68010591,109880.0,109870.0,0.36301]
[1761258220918,0.68010591,109880.0,109870.0,0.50742542]
[1761258221123,0.71286983,109880.0,109870.0,0.50742542]
[1761258221723,0.71286983,109880.0,109870.0,0.36301]
[1761258222814,0.71286983,109880.0,109870.0,0.50742542]
[1761258225626,0.71286983,109880.0,109870.0,0.18754542]
[1761258225930,0.71286983,109880.0,109870.0,0.50738542]
[1761258226931,0.71286983,109880.0,109870.0,0.59837482]
[1761258227140,0.71286983,109880.0,109870.0,0.62276444]
[1761258230742,0.35206983,109880.0,109870.0,0.62276444]
[1761258230943,0.71286983,109880.0,109870.0,0.62276444]
[1761258232445,0.71286983,109880.0,109870.0,0.53177504]
[1761258233144,0.71286983,109880.0,109870.0,0.21193504]
[1761258233347,0.68831464,109880.0,109870.0,0.50738542]
[1761258234946,0.83273006,109880.0,109870.0,0.50738542]
[1761258235140,0.47193006,109880.0,109870.0,0.50738542]
[1761258235332,0.83273006,109880.0,109870.0,0.50738542]
[1761258235536,0.83273006,109880.0,109870.0,0.36297]
[1761258235737,0.88187594,109880.0,109870.0,0.36297]
[1761258235945,0.88187594,109880.0,109870.0,0.04313]
[1761258236747,0.7374257,109880.0,109870.0,0.04313]
[1761258238747,0.01319,109870.0,109860.0,0.10219911]
[1761258238950,0.62169942,109870.0,109860.0,0.02324]
[1761258239143,0.05918,109860.0,109850.0,0.87388298]
[1761258239738,0.05918,109860.0,109850.0,0.88665298]
[1761258239943,0.05918,109860.0,109850.0,0.89583603]
[1761258240140,0.04599,109860.0,109850.0,0.88665298]
[1761258240344,0.04599,109860.0,109850.0,1.03103358]
[1761258241449,0.1369877,109860.0,109850.0,1.03103358]
[1761258241645,0.1369877,109860.0,109850.0,1.03203358]
[1761258242049,0.1369877,109860.0,109850.0,1.03103358]
[1761258242454,0.1369877,109860.0,109850.0,1.04025933]
[1761258243144,0.1369877,109860.0,109850.0,1.01583184]
[1761258243352,0.1369877,109860.0,109850.0,1.04023712]
[1761258249554,0.1369877,109860.0,109850.0,0.89585652]
[1761258249757,0.1369877,109860.0,109850.0,1.04023712]
[1761258250056,0.1140477,109860.0,109850.0,1.04023712]
[1761258250559,0.1369877,109860.0,109850.0,1.04023712]
[1761258253272,0.1369877,109860.0,109850.0,1.01583184]
[1761258253454,0.0909977,109860.0,109850.0,1.01583184]
[1761258253659,0.0909977,109860.0,109850.0,1.06461108]
[1761258257065,0.0909894,109870.0,109860.0,0.1490577]
[1761258257269,0.0909894,109870.0,109860.0,0.67863294]
[1761258258159,0.0909894,109870.0,109860.0,0.71115243]
[1761258258361,0.0919894,109870.0,109860.0,0.71115243]
[1761258259366,0.1150394,109870.0,109860.0,0.71115243]
[1761258259566,0.1379794,109870.0,109860.0,0.71115243]
[1761258260775,0.1379794,109870.0,109860.0,0.56677183]
[1761258260961,0.1379794,109870.0,109860.0,0.71115243]
[1761258261161,0.1379794,109870.0,109860.0,0.35035243]
[1761258261359,0.1379794,109870.0,109860.0,0.71115243]
[1761258265365,0.1379794,109870.0,109860.0,0.56677183]
[1761258268973,0.1509294,109870.0,109860.0,0.56677183]
[1761258273178,0.1509294,109870.0,109860.0,0.20597183]
[1761258273372,0.1509294,109870.0,109860.0,0.56677183]
[1761258274780,0.1379794,109870.0,109860.0,0.56677183]
[1761258276375,0.1379794,109870.0,109860.0,0.20597183]
[1761258276579,0.1379794,109870.0,109860.0,0.56677183]
[1761258277178,0.1379794,109870.0,109860.0,0.71115243]
[1761258282586,0.1379794,109870.0,109860.0,0.56677183]
[1761258282889,0.1379794,109870.0,109860.0,0.71115243]
[1761258286285,0.1379794,109870.0,109860.0,0.68675779]
[1761258287179,0.001,109870.0,109860.0,0.73553703]
[1761258287386,0.0919894,109870.0,109860.0,0.87991763]
[1761258287584,0.0919894,109870.0,109860.0,0.73553703]
[1761258289984,0.0919894,109870.0,109860.0,0.59115643]
[1761258290190,0.1148894,109870.0,109860.0,0.59115643]
[1761258290392,0.1148894,109870.0,109860.0,0.73553703]
[1761258290592,0.0919894,109870.0,109860.0,0.73553703]
[1761258298400,0.0919894,109870.0,109860.0,0.37473703]
[1761258298604,0.0919894,109870.0,109860.0,0.73553703]
[1761258298805,0.0919894,109870.0,109860.0,0.87984687]
[1761258299698,0.1144594,109870.0,109860.0,0.87984687]
[1761258299904,0.0919894,109870.0,109860.0,0.87984687]
[1761258300402,0.1144594,109870.0,109860.0,0.87984687]
[1761258302102,0.0919894,109870.0,109860.0,0.87984687]
[1761258303899,0.001,109870.0,109860.0,0.87984687]
[1761258304102,0.02456051,109880.0,109870.0,0.1494994]
[1761258304300,0.15962931,109890.0,109880.0,0.1494911]
[1761258304503,0.15962931,109890.0,109880.0,0.82338654]
[1761258305301,0.1350688,109890.0,109880.0,0.82338654]
[1761258305506,0.1360688,109890.0,109880.0,0.82338654]
[1761258305706,0.1360688,109890.0,109880.0,0.67904132]
[1761258306205,0.1360688,109890.0,109880.0,0.82338654]
[1761258306403,0.04509,109890.0,109880.0,0.82338654]
[1761258306706,0.001,109890.0,109880.0,0.85593702]
[1761258307009,0.001,109890.0,109880.0,0.83153202]
[1761258307400,0.06865051,109900.0,109890.0,0.1494828]
[1761258307601,0.21299573,109900.0,109890.0,0.97430802]
[1761258308209,0.21299573,109900.0,109890.0,0.98319244]
[1761258308408,0.18843522,109900.0,109890.0,0.98319244]
[1761258308708,0.18943522,109900.0,109890.0,0.98319244]
[1761258309015,0.18943522,109900.0,109890.0,0.83884722]
[1761258309307,0.18943522,109900.0,109890.0,0.98319244]
[1761258311010,0.18943522,109900.0,109890.0,0.62239244]
[1761258311207,0.18943522,109900.0,109890.0,0.98319244]
[1761258316712,0.18943522,109900.0,109890.0,0.83884722]
[1761258316905,0.18943522,109900.0,109890.0,0.97430802]
[1761258317512,0.20244522,109900.0,109890.0,0.8299628]
[1761258317810,0.20244522,109900.0,109890.0,0.97430802]
[1761258318412,0.20244522,109900.0,109890.0,0.61350802]
[1761258318611,0.20244522,109900.0,109890.0,0.97430802]
[1761258322514,0.20244522,109900.0,109890.0,0.8299628]
[1761258322706,0.20244522,109900.0,109890.0,0.97430802]
[1761258323213,0.20244522,109900.0,109890.0,0.61350802]
[1761258323414,0.20244522,109900.0,109890.0,0.97430802]
[1761258324814,0.20244522,109900.0,109890.0,0.8299628]
[1761258325021,0.08266051,109900.0,109890.0,0.8170029]
[1761258325207,0.37135095,109900.0,109890.0,0.8170029]
[1761258325914,0.22700573,109900.0,109890.0,0.8170029]
[1761258326709,0.37135095,109900.0,109890.0,0.8170029]
[1761258326914,0.22700573,109900.0,109890.0,0.8170029]
[1761258327614,0.37135095,109900.0,109890.0,0.8170029]
[1761258330401,0.06965051,109900.0,109890.0,0.8300229]
[1761258330610,0.21399573,109900.0,109890.0,0.97436812]
[1761258332113,0.04803051,109900.0,109890.0,0.97436812]
[1761258332313,0.19237573,109900.0,109890.0,0.99874772]
[1761258336316,0.19237573,109900.0,109890.0,1.0312982]
[1761258336718,0.19137573,109900.0,109890.0,1.0312982]
[1761258337417,0.04703051,109900.0,109890.0,1.0312982]
[1761258337619,0.02456051,109900.0,109890.0,1.0312982]
[1761258337820,0.04701051,109900.0,109890.0,1.0312982]
[1761258338520,0.06909051,109900.0,109890.0,1.0312982]
[1761258338819,0.21343573,109900.0,109890.0,1.0312982]
[1761258340617,0.21343573,109900.0,109890.0,0.88695298]
[1761258340824,0.21343573,109900.0,109890.0,1.0312982]
[1761258343231,0.21343721,109900.0,109890.0,1.0313372]
[1761258344825,0.21343721,109900.0,109890.0,0.99878672]
[1761258345122,0.19135721,109900.0,109890.0,1.0313372]
[1761258346626,0.21343721,109900.0,109890.0,1.0313372]
[1761258347425,0.21343721,109900.0,109890.0,0.99878672]
[1761258347625,0.21343721,109900.0,109890.0,0.8544415]
[1761258347825,0.16890721,109900.0,109890.0,0.99878672]
[1761258348126,0.19135721,109900.0,109890.0,0.99878672]
[1761258348426,0.21343721,109900.0,109890.0,0.99878672]
[1761258348926,0.21343721,109900.0,109890.0,1.0313372]
[1761258353334,0.21343721,109900.0,109890.0,0.6705372]
[1761258353525,0.21343721,109900.0,109890.0,1.0313372]
[1761258354228,0.06909199,109900.0,109890.0,1.0313372]
[1761258354427,0.06955199,109900.0,109890.0,1.0313372]
[1761258354627,0.21389721,109900.0,109890.0,1.0313372]
[1761258354827,0.21389721,109900.0,109890.0,0.88699198]
[1761258355027,0.21389721,109900.0,109890.0,1.0313372]
[1761258358229,0.06955199,109900.0,109890.0,1.0313372]
[1761258358428,0.02456199,109900.0,109890.0,1.0313372]
[1761258358634,0.04633199,109900.0,109890.0,1.0313372]
[1761258358830,0.06887199,109900.0,109890.0,1.0313372]
[1761258360736,0.06887199,109900.0,109890.0,1.03128211]
[1761258360929,0.06887199,109900.0,109890.0,0.88699198]
[1761258363736,0.06887199,109900.0,109890.0,0.52619198]
[1761258363931,0.06887199,109900.0,109890.0,0.88699198]
[1761258369138,0.06887199,109900.0,109890.0,0.52619198]
[1761258369339,0.06887199,109900.0,109890.0,0.88699198]
[1761258372037,0.06887199,109900.0,109890.0,0.52619198]
[1761258372236,0.06887199,109900.0,109890.0,0.88699198]
[1761258373234,0.10163591,109900.0,109890.0,0.88699198]
[1761258375042,0.10163591,109900.0,109890.0,0.52619198]
[1761258375244,0.10163591,109900.0,109890.0,0.88699198]
[1761258382453,0.06887199,109900.0,109890.0,0.88699198]
[1761258382655,0.10163591,109900.0,109890.0,0.88699198]
[1761258382844,0.06887199,109900.0,109890.0,0.88699198]
[1761258384143,0.06962199,109900.0,109890.0,0.88699198]
[1761258384551,0.25954604,109900.0,109890.0,0.8412213]
[1761258385357,0.25954604,109900.0,109890.0,0.8545613]
[1761258385560,0.11525591,109900.0,109890.0,0.8545613]
[1761258385760,0.10238591,109900.0,109890.0,0.8545613]
[1761258386761,0.06962199,109900.0,109890.0,0.8545613]
[1761258388062,0.10238591,109900.0,109890.0,0.8545613]
[1761258388263,0.06962199,109900.0,109890.0,0.8545613]
[1761258390065,0.06962199,109900.0,109890.0,0.4937613]
[1761258390467,0.06962199,109900.0,109890.0,0.8545613]
[1761258391065,0.22785212,109900.0,109890.0,0.84935318]
[1761258391365,0.22785212,109900.0,109890.0,0.8168027]
[1761258391868,0.22785212,109900.0,109890.0,0.4973228]
[1761258392166,0.22785212,109900.0,109890.0,0.8168028]
[1761258393072,0.22885212,109900.0,109890.0,0.8168028]
[1761258396467,0.22885188,109900.0,109890.0,0.8168028]
[1761258396666,0.22885188,109900.0,109890.0,0.8294328]
[1761258397571,0.08456175,109900.0,109890.0,0.8294328]
[1761258397767,0.22885188,109900.0,109890.0,0.8294328]
[1761258399775,0.08456175,109900.0,109890.0,0.8294328]
[1761258399976,0.22885188,109900.0,109890.0,0.8294328]
[1761258400777,0.22885188,109900.0,109890.0,0.5099528]
[1761258400976,0.22885188,109900.0,109890.0,0.85388974]
[1761258401576,0.22785188,109900.0,109890.0,0.85388974]
[1761258401971,0.06962175,109900.0,109890.0,0.53440974]
[1761258402277,0.21391188,109900.0,109890.0,0.53440974]
[1761258402665,0.21391188,109900.0,109890.0,0.85388974]
[1761258402869,0.21391188,109900.0,109890.0,0.53440974]
[1761258403069,0.21391188,109900.0,109890.0,0.85388974]
[1761258405384,0.06962175,109900.0,109890.0,0.85388974]
[1761258407682,0.06962175,109900.0,109890.0,0.49308974]
[1761258407874,0.06962175,109900.0,109890.0,0.85388974]
[1761258408075,0.21391188,109900.0,109890.0,0.85388974]
[1761258408275,0.06962175,109900.0,109890.0,0.85388974]
[1761258412180,0.10238567,109900.0,109890.0,0.85388974]
[1761258413076,0.10238567,109900.0,109890.0,0.49308974]
[1761258413278,0.10238567,109900.0,109890.0,0.85388974]
[1761258414186,0.2466758,109900.0,109890.0,0.85388974]
[1761258415086,0.2466758,109900.0,109890.0,0.49308974]
[1761258415286,0.2466758,109900.0,109890.0,0.85388974]
[1761258420082,0.21391188,109900.0,109890.0,0.85388974]
[1761258420590,0.21391854,109900.0,109890.0,0.85387271]
[1761258421493,0.06962841,109900.0,109890.0,0.85387271]
[1761258421693,0.21391854,109900.0,109890.0,0.85387271]
[1761258422392,0.21391854,109900.0,109890.0,0.49307271]
[1761258422589,0.21391854,109900.0,109890.0,0.85387271]
[1761258422794,0.35826177,109900.0,109890.0,0.85387271]
[1761258423391,0.39102569,109900.0,109890.0,0.85387271]
[1761258423696,0.10239233,109900.0,109890.0,0.85387271]
[1761258423894,0.39102569,109900.0,109890.0,0.85387271]
[1761258425396,0.39102569,109900.0,109890.0,0.49307271]
[1761258425594,0.24670901,109900.0,109890.0,0.99818939]
[1761258432805,0.24670901,109900.0,109890.0,0.85387271]
[1761258433003,0.24670901,109900.0,109890.0,0.99818939]
[1761258434404,0.10003233,109900.0,109890.0,0.99818939]
[1761258434600,0.22296901,109900.0,109890.0,0.99818939]
[1761258435104,0.24434901,109900.0,109890.0,0.99818939]
[1761258436301,0.10003233,109900.0,109890.0,0.99818939]
[1761258436502,0.02456841,109900.0,109890.0,1.03073987]
[1761258438106,0.16888509,109900.0,109890.0,1.03073987]
[1761258438703,0.16888509,109900.0,109890.0,0.88642319]
[1761258438898,0.21158509,109900.0,109890.0,0.88642319]
[1761258439100,0.21158509,109900.0,109890.0,1.03073987]
[1761258439606,0.16888509,109900.0,109890.0,1.03073987]
[1761258440809,0.02456841,109900.0,109890.0,1.03073987]
[1761258441008,0.16888509,109900.0,109890.0,1.03073987]
[1761258441508,0.19020509,109900.0,109890.0,1.03073987]
[1761258441810,0.16563668,109900.0,109890.0,1.00629996]
[1761258442116,0.19020447,109900.0,109890.0,1.03073712]
[1761258442609,0.02456779,109900.0,109890.0,1.03073712]
[1761258443010,0.16888447,109900.0,109890.0,1.03073712]
[1761258443205,0.02456779,109900.0,109890.0,1.03073712]
[1761258446111,0.02456779,109900.0,109890.0,0.66993712]
[1761258446498,0.0867098,109910.0,109900.0,0.0909673]
[1761258446703,0.0867098,109910.0,109900.0,0.82400264]
[1761258446704,0.03756392,109910.0,109900.0,0.82400264]
[1761258447001,0.0048,109910.0,109900.0,0.82400264]
[1761258447404,0.0048,109910.0,109900.0,0.83212114]
[1761258447611,0.0048,109910.0,109900.0,0.88090038]
[1761258447812,0.0048,109910.0,109900.0,0.8483499]
[1761258448310,0.0048,109910.0,109900.0,0.88087993]
[1761258449309,0.5601506,109930.0,109920.0,0.05917]
[1761258449507,0.5601506,109930.0,109920.0,0.52284668]
[1761258449713,0.5821106,109930.0,109920.0,0.52284668]
[1761258450513,0.5821106,109930.0,109920.0,0.61379748]
[1761258450913,0.5378806,109930.0,109920.0,0.61379748]
[1761258451114,0.50511668,109930.0,109920.0,0.61379748]
[1761258451415,0.50611668,109930.0,109920.0,0.61379748]
[1761258451716,0.38407,109930.0,109920.0,0.61379748]
[1761258451920,0.55054668,109930.0,109920.0,0.61379748]
[1761258452215,0.18974668,109930.0,109920.0,0.61379748]
[1761258452615,0.16758668,109930.0,109920.0,0.61379748]
[1761258453214,0.16758668,109930.0,109920.0,0.97459748]
[1761258453511,0.18974668,109930.0,109920.0,0.61379748]
[1761258453815,0.14531668,109930.0,109920.0,0.61379748]
[1761258454016,0.001,109930.0,109920.0,0.61379748]
[1761258454416,0.14531668,109930.0,109920.0,0.61379748]
[1761258455617,0.02429,109930.0,109920.0,0.61379748]
[1761258455826,0.001,109930.0,109920.0,0.61379748]
[1761258456318,0.001,109930.0,109920.0,0.97459748]
[1761258456822,0.001,109930.0,109920.0,0.61379748]
[1761258457121,0.14531668,109930.0,109920.0,0.97459748]
[1761258457621,0.001,109930.0,109920.0,0.97459748]
[1761258458116,0.02429,109930.0,109920.0,0.97459748]
[1761258459422,0.04645,109930.0,109920.0,0.97459748]
[1761258459722,0.04645,109930.0,109920.0,0.61379748]
[1761258460120,0.19076668,109930.0,109920.0,0.61379748]
[1761258460815,0.20471668,109930.0,109920.0,0.1370008]
[1761258461117,0.56551668,109930.0,109920.0,0.4562808]
[1761258463326,0.56551668,109930.0,109920.0,0.1370008]
[1761258463529,0.56551668,109930.0,109920.0,0.4562808]
[1761258465427,0.55156668,109930.0,109920.0,0.61424748]
[1761258465821,0.55156668,109930.0,109920.0,0.4699308]
[1761258466020,0.55156668,109930.0,109920.0,0.61424748]
[1761258466314,0.19076668,109930.0,109920.0,0.4699308]
[1761258467427,0.04645,109930.0,109920.0,0.4699308]
[1761258467625,0.19076668,109930.0,109920.0,0.4699308]
[1761258467828,0.04645,109930.0,109920.0,0.61424748]
[1761258468027,0.19076668,109930.0,109920.0,0.61424748]
[1761258468928,0.19076668,109930.0,109920.0,0.4699308]
[1761258469126,0.19076668,109930.0,109920.0,0.61424748]
[1761258473635,0.14531668,109930.0,109920.0,0.61424748]
[1761258473833,0.16736668,109930.0,109920.0,0.61424748]
[1761258474033,0.19013668,109930.0,109920.0,0.4699308]
[1761258474331,0.19013668,109930.0,109920.0,0.61424748]
[1761258475634,0.14531668,109930.0,109920.0,0.61424748]
[1761258476036,0.16736668,109930.0,109920.0,0.61424748]
[1761258476334,0.2001306,109930.0,109920.0,0.97504748]
[1761258476828,0.2229006,109930.0,109920.0,0.97504748]
[1761258478639,0.1780806,109930.0,109920.0,0.97504748]
[1761258478834,0.2001306,109930.0,109920.0,0.97504748]
[1761258479137,0.2229006,109930.0,109920.0,0.97504748]
[1761258480138,0.2229006,109930.0,109920.0,0.99943497]
[1761258481940,0.2001306,109930.0,109920.0,0.99943497]
[1761258482541,0.2229006,109930.0,109920.0,0.99943497]
[1761258482740,0.07858392,109930.0,109920.0,0.85511829]
[1761258484346,0.05581392,109930.0,109920.0,0.85511829]
[1761258484542,0.07858392,109930.0,109920.0,0.85511829]
[1761258485645,0.05581392,109930.0,109920.0,0.85511829]
[1761258485846,0.05581392,109930.0,109920.0,1.39935765]
[1761258485847,0.03376392,109930.0,109920.0,1.39935765]
[1761258486144,0.0867098,109950.0,109920.0,1.54723023]
[1761258486343,0.05961392,109950.0,109940.0,0.05784]
[1761258486541,0.08238392,109950.0,109940.0,0.4680143]
[1761258488041,0.08438392,109950.0,109940.0,0.8288143]
[1761258488246,0.05162,109950.0,109940.0,0.8288143]
[1761258489048,0.05262,109950.0,109940.0,0.98208198]
[1761258489244,0.05262,109950.0,109940.0,0.83784262]
[1761258489444,0.05262,109950.0,109940.0,0.8288143]
[1761258492148,0.05262,109950.0,109940.0,0.83807276]
[1761258492549,0.05262,109950.0,109940.0,0.8288143]
[1761258492950,0.05262,109950.0,109940.0,0.83771869]
[1761258493450,0.02985,109950.0,109940.0,0.83771869]
[1761258493749,0.02985,109950.0,109940.0,0.8288143]
[1761258494146,0.02985,109950.0,109940.0,0.97305366]
[1761258494353,0.0078,109950.0,109940.0,0.97305366]
[1761258497045,0.0078,109950.0,109940.0,0.98221451]
[1761258498045,0.39356392,109970.0,109960.0,0.1487577]
[1761258498246,0.39356392,109970.0,109960.0,0.4679177]
[1761258498247,0.04482,109970.0,109960.0,0.4679177]
[1761258499554,0.04482,109970.0,109960.0,0.4689177]
[1761258500457,0.04682,109970.0,109960.0,0.4689177]
[1761258506566,0.07128649,109970.0,109960.0,0.4689177]
[1761258510873,0.57632585,109970.0,109960.0,0.378]
[1761258511573,0.21552585,109970.0,109960.0,0.4689177]
[1761258511777,0.57632585,109970.0,109960.0,0.4689177]
[1761258512280,0.43208649,109970.0,109960.0,0.4689177]
[1761258512779,0.07128649,109970.0,109960.0,0.4689177]
[1761258513266,0.10405041,109970.0,109960.0,0.4689177]
[1761258515277,0.62174977,109970.0,109960.0,0.36525]
[1761258515481,0.62174977,109970.0,109940.0,0.64224436]
[1761258515482,0.05695,109950.0,109940.0,0.04395]
[1761258515678,0.59466845,109950.0,109940.0,0.04395]
[1761258515973,0.64381433,109950.0,109940.0,0.04395]
[1761258516579,0.64581433,109950.0,109940.0,0.04395]
[1761258517179,0.60595578,109950.0,109940.0,0.04395]
[1761258517380,0.46171642,109950.0,109940.0,0.04395]
[1761258517584,0.5108623,109950.0,109940.0,0.04395]
[1761258517878,0.65510166,109950.0,109940.0,0.04395]
[1761258518279,1.05510166,109950.0,109940.0,0.04395]
[1761258518668,0.65510166,109950.0,109940.0,0.04395]
[1761258519272,0.60595578,109950.0,109940.0,0.04395]
[1761258519479,0.59666845,109950.0,109940.0,0.04395]
[1761258519882,0.59666845,109950.0,109940.0,0.05738]
[1761258519883,0.47693034,109950.0,109940.0,0.05738]
[1761258520073,0.11613034,109950.0,109940.0,0.05738]
[1761258521274,0.58849061,109950.0,109940.0,0.04395]
[1761258521982,0.59049061,109950.0,109940.0,0.04395]
[1761258522479,0.58949061,109950.0,109940.0,0.04395]
[1761258522879,0.44525125,109950.0,109940.0,0.04395]
[1761258523786,0.08445125,109950.0,109940.0,0.04395]
[1761258524374,0.08445125,109950.0,109940.0,0.18818936]
[1761258525084,0.08445125,109950.0,109940.0,0.54898936]
[1761258525382,0.08445125,109950.0,109940.0,0.63992356]
[1761258525588,0.08445125,109950.0,109940.0,0.65335356]
[1761258526680,0.07179125,109950.0,109940.0,0.65335356]
[1761258526982,0.04729,109950.0,109940.0,0.65335356]
[1761258527890,0.003,109950.0,109940.0,0.65335356]
[1761258528388,0.003,109950.0,109940.0,1.07771341]
[1761258532191,0.003,109950.0,109940.0,0.71691341]
[1761258532390,0.003,109950.0,109940.0,1.43851341]
[1761258532789,0.89116524,109990.0,109970.0,0.1043394]
[1761258532790,0.05394588,109990.0,109970.0,0.1043394]
[1761258533089,0.06356,110030.0,110020.0,0.1330881]
[1761258533288,0.06356,110030.0,110020.0,0.46285103]
[1761258533493,0.02774,110030.0,110020.0,1.36789039]
[1761258533789,0.41956,110050.0,110040.0,0.04222]